bitfinex-derivatives/quotes_BTCF0:USTF0_20250805
["timestamp","ask_amount","ask_price","bid_price","bid_amount"]
[1754389701639,0.0362127,115100.0,115090.0,1.6338113]
[1754389701942,0.0124027,115100.0,115090.0,1.6338113]
[1754389703238,0.0124027,115100.0,115090.0,1.27445079]
[1754389703441,0.0124027,115100.0,115090.0,1.6338113]
[1754389704140,0.2953654,115120.0,115110.0,0.2201505]
[1754389704345,0.2953654,115120.0,115110.0,0.8928005]
[1754389704643,0.2953655,115120.0,115110.0,0.8928005]
[1754389705146,0.2953655,115120.0,115110.0,1.00942049]
[1754389705350,0.2228355,115120.0,115110.0,1.00942049]
[1754389705748,0.2228355,115120.0,115110.0,0.39946049]
[1754389705947,0.2248355,115120.0,115110.0,1.00922049]
[1754389706937,0.2973655,115120.0,115110.0,1.00922049]
[1754389707144,0.2973655,115120.0,115110.0,1.01229217]
[1754389709047,0.2973655,115120.0,115110.0,1.27709217]
[1754389709548,0.002,115120.0,115110.0,1.63645268]
[1754389709850,0.002,115120.0,115110.0,1.37165268]
[1754389710250,0.338759,115150.0,115140.0,0.2200902]
[1754389710549,0.1737153,115140.0,115130.0,0.3040094]
[1754389710743,0.65469581,115140.0,115130.0,1.0205394]
[1754389710946,0.2953353,115140.0,115130.0,1.0205394]
[1754389711144,0.02381,115140.0,115130.0,1.37989991]
[1754389711347,0.01463,115150.0,115130.0,1.37989991]
[1754389711348,0.1975114,115150.0,115140.0,0.367722]
[1754389711746,0.02381,115150.0,115140.0,0.367722]
[1754389712048,0.02381,115150.0,115140.0,0.72708251]
[1754389712253,0.02381,115150.0,115140.0,0.367722]
[1754389712753,0.1975377,115160.0,115150.0,0.2829402]
[1754389712954,0.1975377,115160.0,115150.0,0.8921402]
[1754389713155,0.2293277,115160.0,115150.0,0.8921402]
[1754389713347,0.2542077,115160.0,115150.0,0.8921402]
[1754389713546,0.2762177,115160.0,115150.0,0.8921402]
[1754389713755,0.2910577,115160.0,115150.0,0.8921402]
[1754389713944,0.3630412,115170.0,115160.0,0.2829251]
[1754389714154,0.73724171,115170.0,115160.0,0.2829251]
[1754389714349,0.73724171,115170.0,115160.0,0.2687451]
[1754389714551,0.73724171,115170.0,115160.0,0.2829251]
[1754389714753,0.03955,115170.0,115160.0,0.2829251]
[1754389714959,8.374381,115180.0,115170.0,0.26873]
[1754389715161,8.73374151,115180.0,115170.0,0.96106447]
[1754389715358,8.73374151,115180.0,115170.0,1.07768446]
[1754389715855,8.374381,115180.0,115170.0,1.06350446]
[1754389716158,8.73374151,115180.0,115170.0,0.18597446]
[1754389716354,9.03374151,115180.0,115170.0,0.18597446]
[1754389716548,9.03374151,115180.0,115170.0,0.79449446]
[1754389716952,8.73374151,115180.0,115170.0,0.79449446]
[1754389717858,8.73374151,115180.0,115170.0,0.79469446]
[1754389718254,8.73374151,115180.0,115170.0,0.18597446]
[1754389719361,0.2910602,115150.0,115140.0,0.2687753]
[1754389719558,0.2910602,115150.0,115130.0,0.16360935]
[1754389719559,0.2910753,115140.0,115130.0,0.30044414]
[1754389719855,0.65043581,115140.0,115130.0,0.99201337]
[1754389720156,0.65043581,115140.0,115130.0,0.99249337]
[1754389720363,0.65043581,115140.0,115130.0,0.98940763]
[1754389720559,0.65043581,115140.0,115130.0,0.89839953]
[1754389720858,0.79570109,115140.0,115130.0,0.06838923]
[1754389721062,0.2206203,115130.0,115120.0,0.869615]
[1754389721271,0.79571609,115130.0,115120.0,0.902615]
[1754389721465,0.79571609,115130.0,115120.0,0.8261791]
[1754389721866,0.79571609,115130.0,115120.0,0.2171791]
[1754389722265,0.79571609,115130.0,115120.0,0.2201791]
[1754389722468,0.79571609,115130.0,115120.0,0.33679909]
[1754389722881,0.79571609,115130.0,115120.0,0.33579909]
[1754389723771,0.79571609,115130.0,115120.0,0.33779909]
[1754389723970,0.79571609,115130.0,115120.0,0.29436319]
[1754389724374,0.79571609,115130.0,115120.0,0.36516556]
[1754389724574,0.79571609,115130.0,115120.0,0.18842236]
[1754389725772,0.79571609,115130.0,115120.0,0.11761999]
[1754389727078,1.40407609,115130.0,115120.0,0.11761999]
[1754389728877,1.40407609,115130.0,115120.0,0.16547999]
[1754389729078,1.40407609,115130.0,115120.0,0.23420814]
[1754389729379,0.8994503,115130.0,115120.0,0.21934814]
[1754389729576,1.40407609,115130.0,115120.0,0.39309364]
[1754389729977,1.40407609,115130.0,115120.0,0.36009364]
[1754389731473,1.40407609,115130.0,115120.0,0.18634814]
[1754389733780,1.40407609,115130.0,115120.0,0.36009364]
[1754389734282,1.40407609,115130.0,115120.0,0.18634814]
[1754389734670,0.8994503,115130.0,115120.0,0.18634814]
[1754389734878,1.40407609,115130.0,115120.0,0.18634814]
[1754389735076,1.40263609,115130.0,115120.0,0.18634814]
[1754389735282,1.40263609,115130.0,115120.0,0.36009364]
[1754389735482,1.40263609,115130.0,115120.0,0.18634814]
[1754389736577,1.40263609,115130.0,115120.0,0.39309354]
[1754389736885,0.8980103,115130.0,115120.0,0.40795354]
[1754389737086,1.40263609,115130.0,115120.0,0.43873354]
[1754389737282,1.40263609,115130.0,115120.0,0.26498814]
[1754389737684,1.40263609,115130.0,115120.0,0.43873364]
[1754389738288,1.40263609,115130.0,115120.0,0.22859814]
[1754389738887,1.40231609,115130.0,115120.0,0.22859814]
[1754389739080,1.40231609,115130.0,115120.0,0.21934814]
[1754389739278,1.40195609,115130.0,115120.0,0.21934814]
[1754389739482,1.40195609,115130.0,115120.0,0.18634814]
[1754389742193,0.2901906,115110.0,115100.0,0.00042]
[1754389742384,1.40061639,115110.0,115100.0,0.00042]
[1754389742786,0.1873859,115080.0,115070.0,0.3553202]
[1754389742992,0.64935034,115080.0,115070.0,0.9836802]
[1754389743298,0.64935034,115080.0,115070.0,0.9402252]
[1754389743597,0.64935034,115080.0,115070.0,0.68649]
[1754389744195,0.2902359,115080.0,115070.0,0.08065]
[1754389744398,0.64935034,115080.0,115070.0,0.0708]
[1754389744604,0.64935034,115080.0,115070.0,0.001]
[1754389744902,1.40114086,115080.0,115070.0,0.293941]
[1754389745097,0.79542086,115080.0,115070.0,0.293941]
[1754389745303,0.79542086,115080.0,115070.0,0.41056099]
[1754389745599,0.2902359,115080.0,115070.0,0.33082099]
[1754389745800,0.79542086,115080.0,115070.0,0.36424099]
[1754389746002,0.79542086,115080.0,115070.0,0.43478629]
[1754389746305,0.79542086,115080.0,115070.0,0.48110629]
[1754389748597,0.79542086,115080.0,115070.0,0.40136629]
[1754389748900,0.2902359,115080.0,115070.0,0.26096529]
[1754389749100,0.79542086,115080.0,115070.0,0.19016529]
[1754389750096,0.79542086,115080.0,115070.0,0.11961999]
[1754389750397,0.79542086,115080.0,115070.0,0.09461999]
[1754389752198,1.77440582,115080.0,115070.0,0.09461999]
[1754389752396,0.1738512,115050.0,115040.0,0.2436038]
[1754389752592,0.77218616,115050.0,115040.0,0.2909738]
[1754389753299,0.77218616,115050.0,115030.0,1.0036814]
[1754389753300,1.6738663,115040.0,115030.0,1.0036814]
[1754389753498,1.7065463,115040.0,115030.0,1.0262014]
[1754389753800,1.6738663,115040.0,115030.0,1.0262014]
[1754389754004,1.6738663,115040.0,115030.0,1.03037221]
[1754389754395,1.5,115040.0,115030.0,1.03037221]
[1754389754594,1.5,115040.0,115030.0,1.83955717]
[1754389754899,1.6738663,115040.0,115030.0,1.33937221]
[1754389755598,1.6738663,115040.0,115030.0,1.11004261]
[1754389755802,1.6738663,115040.0,115030.0,1.2266626]
[1754389756306,1.6738663,115040.0,115030.0,0.6219426]
[1754389756506,1.5,115040.0,115030.0,1.2266626]
[1754389757308,1.6738663,115040.0,115030.0,1.2266626]
[1754389758006,1.7201263,115040.0,115030.0,1.1394826]
[1754389758210,1.7201263,115040.0,115030.0,1.09176179]
[1754389758506,2.23613126,115040.0,115030.0,0.21881039]
[1754389759010,2.84065126,115040.0,115030.0,0.21881039]
[1754389759396,2.84065126,115040.0,115030.0,0.39269179]
[1754389759902,2.23613126,115040.0,115030.0,0.19629039]
[1754389760108,2.84073126,115040.0,115030.0,0.19629039]
[1754389760496,2.84073126,115040.0,115030.0,0.21881039]
[1754389760702,2.84073126,115040.0,115030.0,0.19629039]
[1754389760909,2.84073126,115040.0,115030.0,0.21881039]
[1754389761208,2.84073126,115040.0,115030.0,0.39269179]
[1754389761502,2.82991126,115040.0,115030.0,0.39269179]
[1754389761708,2.82991126,115040.0,115030.0,0.48729179]
[1754389762008,2.84073126,115040.0,115030.0,0.48729179]
[1754389762606,2.84073126,115040.0,115030.0,0.21881039]
[1754389762807,2.84073126,115040.0,115030.0,0.39269179]
[1754389764106,2.84073126,115040.0,115030.0,0.21881039]
[1754389764904,2.84073126,115040.0,115030.0,0.39269189]
[1754389766309,2.84073126,115040.0,115030.0,0.44121189]
[1754389767105,1.6738663,115040.0,115030.0,0.48729189]
[1754389767307,1.7201263,115040.0,115030.0,1.09133189]
[1754389772708,1.5,115040.0,115030.0,1.89651685]
[1754389773311,1.5,115040.0,115030.0,1.39133189]
[1754389773505,1.5,115040.0,115030.0,1.89651685]
[1754389773909,1.5,115040.0,115030.0,1.59651685]
[1754389774812,1.5,115040.0,115030.0,2.07038085]
[1754389775012,0.2308563,115060.0,115050.0,0.2219213]
[1754389775216,0.05702,115060.0,115050.0,0.8968113]
[1754389775421,0.2308562,115060.0,115050.0,0.8968113]
[1754389775617,0.2475162,115060.0,115050.0,0.8968113]
[1754389776019,0.07368,115060.0,115050.0,0.8968113]
[1754389776620,0.07368,115060.0,115050.0,0.8998113]
[1754389777012,0.07368,115060.0,115050.0,0.9018113]
[1754389777818,0.2689661,115060.0,115050.0,0.9018113]
[1754389778021,0.2919161,115060.0,115050.0,0.9018113]
[1754389778228,0.2689661,115060.0,115050.0,0.9018113]
[1754389779321,0.2919161,115060.0,115050.0,0.9018113]
[1754389779920,0.2689661,115060.0,115050.0,0.9018113]
[1754389780420,0.2919161,115060.0,115050.0,1.01843129]
[1754389781416,0.79710106,115060.0,115050.0,0.90904129]
[1754389781615,0.79710106,115060.0,115050.0,0.89907129]
[1754389781822,0.79710106,115060.0,115050.0,0.72521999]
[1754389782120,0.79710106,115060.0,115050.0,0.89907109]
[1754389782317,0.79710106,115060.0,115050.0,0.72521999]
[1754389782621,0.79710106,115060.0,115050.0,0.89907129]
[1754389782824,0.79710106,115060.0,115050.0,1.01791129]
[1754389784224,0.2549461,115060.0,115050.0,1.01791129]
[1754389784524,0.2689661,115060.0,115050.0,1.01791129]
[1754389784823,0.2919161,115060.0,115050.0,1.01791129]
[1754389788427,0.79710106,115060.0,115050.0,1.01791129]
[1754389789527,0.2919161,115060.0,115050.0,1.01791129]
[1754389789720,0.79710106,115060.0,115050.0,1.01791129]
[1754389790621,0.68842106,115060.0,115050.0,1.01791129]
[1754389790827,0.2308561,115060.0,115050.0,1.01791129]
[1754389791030,0.2689661,115060.0,115050.0,1.01791129]
[1754389791222,0.2919161,115060.0,115050.0,1.01791129]
[1754389791828,0.79710106,115060.0,115050.0,1.01791129]
[1754389793223,0.79710106,115060.0,115050.0,0.12161999]
[1754389794023,1.39934106,115060.0,115050.0,0.12161999]
[1754389796831,0.8941561,115060.0,115050.0,0.12161999]
[1754389797019,1.39934106,115060.0,115050.0,0.14464999]
[1754389797620,1.39934106,115060.0,115050.0,0.12161999]
[1754389799634,1.39934106,115060.0,115050.0,0.29547119]
[1754389799936,1.39934106,115060.0,115050.0,0.31850119]
[1754389800229,1.39934106,115060.0,115050.0,0.14464999]
[1754389800920,1.39934106,115060.0,115050.0,0.29547119]
[1754389801121,1.39902106,115060.0,115050.0,0.41431119]
[1754389801428,0.1738361,115060.0,115050.0,0.41431119]
[1754389801833,0.173836,115060.0,115050.0,0.54469249]
[1754389802127,0.2433433,115070.0,115060.0,0.289266]
[1754389802323,0.2172833,115070.0,115060.0,0.289266]
[1754389802523,0.2270833,115070.0,115060.0,0.289266]
[1754389802728,0.63507846,115070.0,115060.0,0.289266]
[1754389802930,0.2270833,115070.0,115060.0,0.289266]
[1754389803127,0.3303895,115080.0,115070.0,0.221311]
[1754389803332,0.1738189,115080.0,115070.0,0.891171]
[1754389803730,0.2711508,115090.0,115080.0,0.2892359]
[1754389804034,0.3580421,115100.0,115090.0,0.2892208]
[1754389804221,0.71726726,115100.0,115090.0,0.10084]
[1754389804428,0.74072726,115100.0,115090.0,0.0689]
[1754389804632,0.2125959,115080.0,115070.0,0.03194]
[1754389804931,0.79982095,115080.0,115070.0,0.891931]
[1754389805128,0.79982095,115080.0,115070.0,0.71811]
[1754389805328,0.79982095,115080.0,115070.0,0.83472999]
[1754389805531,0.79982095,115080.0,115070.0,1.00855099]
[1754389807334,0.79982095,115080.0,115070.0,1.00851099]
[1754389807929,0.79982095,115080.0,115070.0,0.71921999]
[1754389808124,0.79982095,115080.0,115070.0,0.11661999]
[1754389808440,0.79982095,115080.0,115070.0,0.91557099]
[1754389808737,0.79982095,115080.0,115070.0,0.99384099]
[1754389808938,0.79982095,115080.0,115070.0,1.00843099]
[1754389809132,0.79982095,115080.0,115070.0,1.00835099]
[1754389809836,0.79982095,115080.0,115070.0,0.83452999]
[1754389810136,0.79982095,115080.0,115070.0,0.23204999]
[1754389810336,0.79982095,115080.0,115070.0,0.83448999]
[1754389810641,0.79982095,115080.0,115070.0,1.00831109]
[1754389814138,0.79982095,115080.0,115070.0,0.40587109]
[1754389814436,1.40174095,115080.0,115070.0,0.11661999]
[1754389816928,1.906936,115080.0,115070.0,0.11661999]
[1754389817128,2.380736,115080.0,115070.0,0.11661999]
[1754389817334,0.2031212,115050.0,115040.0,0.9553263]
[1754389817534,0.70831625,115050.0,115040.0,0.9553263]
[1754389817836,0.70831625,115050.0,115040.0,0.9778963]
[1754389818839,0.70831625,115050.0,115040.0,0.9808963]
[1754389819034,0.70831625,115050.0,115040.0,0.70548]
[1754389819538,0.70831625,115050.0,115040.0,0.72007]
[1754389820139,0.70831625,115050.0,115040.0,0.10384]
[1754389820336,0.70831625,115050.0,115040.0,0.22045999]
[1754389820641,0.70831625,115050.0,115040.0,0.19251999]
[1754389821136,0.70831625,115050.0,115040.0,0.14618999]
[1754389822039,0.70831625,115050.0,115040.0,0.17812999]
[1754389822239,0.70831625,115050.0,115040.0,0.14618999]
[1754389822841,0.70831625,115050.0,115040.0,0.17812999]
[1754389823141,0.70831625,115050.0,115040.0,0.19369999]
[1754389823643,0.70831625,115050.0,115040.0,0.21510999]
[1754389825242,0.70831625,115050.0,115040.0,0.23904999]
[1754389826649,0.56256359,115050.0,115040.0,0.23904999]
[1754389827335,0.56256359,115050.0,115040.0,0.22445999]
[1754389828343,0.1836512,115050.0,115040.0,0.39832639]
[1754389828643,0.2607723,115060.0,115050.0,0.2653413]
[1754389828843,0.2607479,115070.0,115060.0,0.2201662]
[1754389829044,0.35944239,115070.0,115060.0,0.2892662]
[1754389829246,0.60278249,115080.0,115070.0,0.2892511]
[1754389829437,0.60598249,115080.0,115070.0,0.2892511]
[1754389829645,0.2465401,115080.0,115070.0,0.2892511]
[1754389829845,0.56252939,115080.0,115070.0,0.2892511]
[1754389830051,0.55932939,115080.0,115070.0,0.2892511]
[1754389830246,0.54305939,115080.0,115070.0,0.40587109]
[1754389830447,0.55732939,115080.0,115070.0,0.40587109]
[1754389830745,0.183617,115080.0,115070.0,0.40587109]
[1754389831045,0.2705014,115090.0,115080.0,0.289236]
[1754389831249,0.2172514,115090.0,115080.0,0.289236]
[1754389832150,0.7463092,115090.0,115080.0,0.289236]
[1754389832448,0.7321092,115090.0,115080.0,0.289236]
[1754389832649,0.2270514,115090.0,115080.0,0.289236]
[1754389832949,0.2432514,115090.0,115080.0,0.289236]
[1754389833151,0.7483092,115090.0,115080.0,0.289236]
[1754389834449,0.7515092,115090.0,115080.0,0.10084]
[1754389835240,0.7515092,115090.0,115080.0,0.17616999]
[1754389835451,0.7515092,115090.0,115080.0,0.13918999]
[1754389836348,0.7515092,115090.0,115080.0,0.11661999]
[1754389837245,0.7515092,115090.0,115050.0,0.2173006]
[1754389837246,0.01289,115060.0,115050.0,0.2563105]
[1754389837451,0.8383852,115060.0,115050.0,0.8718005]
[1754389837842,0.8383852,115060.0,115050.0,0.8957005]
[1754389838249,0.3333274,115060.0,115050.0,0.2940205]
[1754389838449,0.3333274,115060.0,115050.0,0.2960205]
[1754389839651,0.7949229,115060.0,115050.0,0.2960205]
[1754389840454,0.7949229,115060.0,115050.0,0.41264049]
[1754389840655,0.7949229,115060.0,115050.0,0.41564049]
[1754389842251,0.7949229,115060.0,115050.0,0.40183049]
[1754389842556,0.7949229,115060.0,115050.0,0.24178999]
[1754389842752,0.7949229,115060.0,115050.0,0.19402999]
[1754389842959,0.7949229,115060.0,115050.0,0.14551999]
[1754389843154,1.3964429,115060.0,115050.0,0.14551999]
[1754389844350,1.3964429,115060.0,115050.0,0.21797999]
[1754389844552,0.8911851,115060.0,115050.0,0.41564119]
[1754389844752,0.2866651,115060.0,115050.0,0.41564119]
[1754389844957,0.7949229,115060.0,115050.0,0.18402999]
[1754389845158,0.7949229,115060.0,115050.0,0.14551999]
[1754389845353,0.7949229,115060.0,115050.0,0.12161999]
[1754389845956,0.7949229,115060.0,115050.0,0.14551999]
[1754389850056,0.7949229,115060.0,115050.0,0.21797999]
[1754389850559,0.7949229,115060.0,115050.0,0.39183129]
[1754389850853,0.64926157,115060.0,115050.0,0.39183129]
[1754389851058,0.64926157,115060.0,115050.0,0.21797999]
[1754389852166,0.64926157,115060.0,115050.0,0.39183129]
[1754389852571,0.64926157,115060.0,115050.0,0.21797999]
[1754389855865,0.64926157,115060.0,115050.0,0.39183129]
[1754389856972,0.64926157,115060.0,115050.0,0.41564129]
[1754389857171,1.24994157,115060.0,115050.0,0.41564129]
[1754389858574,0.60259927,115060.0,115050.0,0.41564129]
[1754389860085,0.2173128,115060.0,115050.0,0.41564129]
[1754389860378,0.57670927,115060.0,115050.0,0.41564129]
[1754389860677,0.58639927,115060.0,115050.0,0.41564129]
[1754389861278,0.60059927,115060.0,115050.0,0.41564129]
[1754389861879,0.2412028,115060.0,115050.0,0.41564129]
[1754389862080,0.60059927,115060.0,115050.0,0.41564129]
[1754389862279,0.60077927,115060.0,115050.0,0.41564129]
[1754389862479,0.2413828,115060.0,115050.0,0.41564129]
[1754389862687,0.60077927,115060.0,115050.0,0.41564129]
[1754389862983,0.55731777,115060.0,115050.0,0.41564129]
[1754389863179,0.54293777,115060.0,115050.0,0.41564129]
[1754389863880,0.55931777,115060.0,115050.0,0.41564129]
[1754389864472,0.0578341,115080.0,115060.0,0.08031]
[1754389864677,0.2172693,115080.0,115070.0,0.2936911]
[1754389864977,0.3041527,115090.0,115080.0,0.293676]
[1754389865172,0.2607018,115090.0,115080.0,0.293676]
[1754389865376,0.1738035,115090.0,115080.0,0.293676]
[1754389865579,0.3041239,115100.0,115090.0,0.1737908]
[1754389865780,0.67337037,115100.0,115090.0,0.2936608]
[1754389865980,0.68975037,115100.0,115090.0,0.2936608]
[1754389866384,0.69295037,115100.0,115090.0,0.2936608]
[1754389867279,0.69295037,115100.0,115090.0,0.2793408]
[1754389867479,0.69395037,115100.0,115090.0,0.2793408]
[1754389867882,0.69395037,115100.0,115090.0,0.2936608]
[1754389868681,0.83956978,115100.0,115090.0,0.2936608]
[1754389870386,0.3345539,115100.0,115090.0,0.48059903]
[1754389870584,0.83956978,115100.0,115090.0,0.48059903]
[1754389870784,0.3345539,115100.0,115090.0,0.48059903]
[1754389870982,0.83956978,115100.0,115090.0,0.48059903]
[1754389871892,0.3345539,115100.0,115090.0,0.48059903]
[1754389872188,0.83956978,115100.0,115090.0,0.48059903]
[1754389873589,0.81013978,115100.0,115090.0,0.48059903]
[1754389873789,0.2616768,115100.0,115090.0,0.48059903]
[1754389873985,0.2182307,115100.0,115090.0,0.48059903]
[1754389874193,0.2424607,115100.0,115090.0,0.48059903]
[1754389874996,0.2444607,115100.0,115090.0,0.48059903]
[1754389876600,0.74847658,115100.0,115090.0,0.48059903]
[1754389876896,0.74847658,115100.0,115090.0,0.29248823]
[1754389877090,0.74847658,115100.0,115090.0,0.85885823]
[1754389877091,0.75167658,115100.0,115090.0,0.85885823]
[1754389877296,0.75167658,115100.0,115090.0,0.25861823]
[1754389877604,0.75167658,115100.0,115090.0,0.46627903]
[1754389877903,0.75167658,115100.0,115090.0,0.48059903]
[1754389878297,0.75167658,115100.0,115090.0,0.30680823]
[1754389878690,0.75167658,115100.0,115090.0,0.29248823]
[1754389878999,0.75167658,115100.0,115090.0,0.22649823]
[1754389879304,0.75167658,115100.0,115090.0,0.21078823]
[1754389879501,0.2466607,115100.0,115090.0,0.46627903]
[1754389879696,0.75167658,115100.0,115090.0,0.48059903]
[1754389880093,0.74647658,115100.0,115090.0,0.11661999]
[1754389880398,0.02623,115070.0,115060.0,0.8944504]
[1754389880593,0.2172715,115080.0,115070.0,0.293691]
[1754389880997,0.83340058,115090.0,115080.0,0.2301759]
[1754389881193,0.3140047,115090.0,115080.0,0.8945559]
[1754389881596,0.3283847,115090.0,115080.0,0.8945559]
[1754389881796,0.3303847,115090.0,115080.0,0.8945559]
[1754389882609,0.80917058,115090.0,115080.0,0.1738059]
[1754389882796,0.80917058,115090.0,115060.0,0.00597501]
[1754389882797,0.2000662,115060.0,115050.0,0.5585153]
[1754389882995,0.70508208,115060.0,115050.0,1.1597553]
[1754389883192,0.70508208,115060.0,115050.0,0.8949553]
[1754389883998,0.2000662,115060.0,115050.0,0.2937153]
[1754389884197,0.70508208,115060.0,115050.0,0.8969953]
[1754389884393,0.70828208,115060.0,115050.0,1.01661529]
[1754389885099,0.70828208,115060.0,115050.0,0.41533529]
[1754389885300,0.70828208,115060.0,115050.0,1.0229849]
[1754389886506,0.2032662,115060.0,115050.0,1.0229849]
[1754389886702,0.70828208,115060.0,115050.0,1.0229849]
[1754389886902,0.1980662,115060.0,115050.0,1.0229849]
[1754389887107,0.1738362,115060.0,115050.0,1.0229849]
[1754389887507,0.2172896,115070.0,115060.0,0.2937061]
[1754389887808,0.260719,115080.0,115070.0,0.293691]
[1754389887996,1.760719,115080.0,115070.0,0.895491]
[1754389888198,1.7172652,115080.0,115070.0,0.895491]
[1754389889111,1.5,115080.0,115070.0,0.895491]
[1754389890310,1.5,115080.0,115070.0,1.01211099]
[1754389891014,1.5,115080.0,115070.0,1.69092687]
[1754389891313,1.5,115080.0,115070.0,1.99092687]
[1754389892110,1.5,115080.0,115070.0,1.69092687]
[1754389892610,1.5,115080.0,115070.0,1.01211099]
[1754389892804,1.5,115080.0,115070.0,1.01311099]
[1754389893008,0.2838721,115120.0,115110.0,0.1737606]
[1754389893212,0.2890721,115120.0,115110.0,0.8974206]
[1754389893711,0.2456319,115120.0,115110.0,0.8974206]
[1754389894213,0.2476319,115120.0,115110.0,0.8974206]
[1754389895313,0.2476319,115120.0,115110.0,1.01404059]
[1754389895618,0.2476319,115120.0,115110.0,1.08200088]
[1754389895807,0.2041951,115120.0,115110.0,1.08200088]
[1754389896313,0.70919148,115120.0,115110.0,1.08136088]
[1754389896508,0.70919148,115120.0,115110.0,0.48020088]
[1754389896713,0.70719148,115120.0,115110.0,1.05667098]
[1754389897512,0.1830255,115120.0,115110.0,1.07156098]
[1754389897811,0.1969755,115120.0,115110.0,1.07156098]
[1754389898012,0.1989755,115120.0,115110.0,1.07156098]
[1754389898409,0.1999755,115120.0,115110.0,1.07156098]
[1754389899018,0.2019755,115120.0,115110.0,1.07156098]
[1754389899318,0.02823,115120.0,115110.0,1.07156098]
[1754389899616,0.001,115120.0,115110.0,1.07156098]
[1754389899816,0.2698917,115130.0,115120.0,0.1835455]
[1754389900017,0.3292775,115130.0,115120.0,0.2956055]
[1754389900208,0.2605887,115140.0,115130.0,0.1737304]
[1754389900413,0.2890187,115140.0,115130.0,0.8965504]
[1754389902317,0.2698687,115140.0,115130.0,0.8965504]
[1754389902711,0.2838187,115140.0,115130.0,0.8965504]
[1754389903022,0.2858187,115140.0,115130.0,0.8965504]
[1754389904313,0.2868187,115140.0,115130.0,0.8965504]
[1754389905319,0.2868187,115140.0,115130.0,1.01317039]
[1754389906716,0.64560704,115140.0,115130.0,1.01317039]
[1754389907318,0.2868187,115140.0,115130.0,1.27797039]
[1754389907519,0.64560704,115140.0,115130.0,1.27797039]
[1754389908518,0.2868187,115140.0,115130.0,1.27797039]
[1754389908815,0.2274374,115140.0,115130.0,1.27797039]
[1754389909318,0.2181574,115140.0,115130.0,1.27797039]
[1754389909517,0.1747281,115140.0,115130.0,1.27797039]
[1754389910115,0.1747153,115140.0,115130.0,1.27797039]
[1754389911020,0.1747153,115140.0,115130.0,1.01317039]
[1754389911424,0.1747153,115140.0,115130.0,1.37195873]
[1754389911625,0.1747153,115140.0,115130.0,1.01317039]
[1754389912124,0.1999453,115140.0,115130.0,1.01317039]
[1754389916523,0.1999453,115140.0,115130.0,0.41221039]
[1754389916719,0.56193364,115140.0,115130.0,1.01257039]
[1754389917517,0.56193364,115140.0,115130.0,0.22358999]
[1754389917718,0.2021755,115120.0,115110.0,0.36357819]
[1754389917927,0.56096384,115120.0,115110.0,0.2956179]
[1754389918122,0.56096384,115120.0,115110.0,0.8957779]
[1754389918523,0.56096384,115120.0,115110.0,0.8957806]
[1754389918923,0.56096384,115120.0,115110.0,0.72202]
[1754389919124,0.56096384,115120.0,115110.0,0.8957806]
[1754389920230,0.56096384,115120.0,115110.0,0.12186]
[1754389920425,0.91975218,115120.0,115110.0,0.07205]
[1754389920631,0.3072887,115110.0,115100.0,0.02265]
[1754389920831,0.1862708,115090.0,115080.0,0.2730061]
[1754389921031,0.54505914,115090.0,115080.0,0.8730959]
[1754389921225,0.56100914,115090.0,115080.0,0.8730959]
[1754389921425,0.56100914,115090.0,115080.0,0.02265]
[1754389922123,0.2022208,115090.0,115080.0,0.02265]
[1754389922425,0.56100914,115090.0,115080.0,0.2299059]
[1754389922632,0.70729932,115090.0,115080.0,0.2299059]
[1754389922928,0.1830708,115090.0,115080.0,0.40881589]
[1754389923429,0.1987808,115090.0,115080.0,0.40881589]
[1754389923930,0.1830708,115090.0,115080.0,0.4782137]
[1754389924531,0.1967808,115090.0,115080.0,0.4782137]
[1754389924727,0.1987808,115090.0,115080.0,0.4782137]
[1754389925729,0.1967808,115090.0,115080.0,0.4782137]
[1754389926624,0.1987808,115090.0,115080.0,0.4782137]
[1754389929333,0.1830708,115090.0,115080.0,0.4782137]
[1754389929537,0.1737839,115100.0,115090.0,0.2919708]
[1754389929729,0.1737839,115100.0,115090.0,0.8933708]
[1754389930134,0.1737839,115100.0,115090.0,1.00999079]
[1754389930536,0.1965239,115100.0,115090.0,1.00999079]
[1754389932536,0.70360242,115100.0,115090.0,1.00999079]
[1754389932835,0.70160242,115100.0,115090.0,0.35205079]
[1754389933036,0.70680242,115100.0,115090.0,1.00067079]
[1754389933430,0.70680242,115100.0,115090.0,0.21170999]
[1754389933833,0.70680242,115100.0,115090.0,0.13966999]
[1754389934031,0.70680242,115100.0,115090.0,0.11661999]
[1754389934337,1.30800242,115100.0,115090.0,0.11661999]
[1754389934538,1.30800242,115100.0,115090.0,0.13966999]
[1754389935039,0.8029239,115100.0,115090.0,0.31346079]
[1754389935234,1.30800242,115100.0,115090.0,0.31346079]
[1754389935534,1.30800242,115100.0,115090.0,0.13966999]
[1754389935837,1.30900242,115100.0,115090.0,0.31346079]
[1754389936932,1.31100242,115100.0,115090.0,0.31346079]
[1754389937630,1.31100242,115100.0,115090.0,0.13966999]
[1754389941734,0.70980242,115100.0,115090.0,0.38550089]
[1754389941943,0.1767839,115100.0,115090.0,1.00983089]
[1754389942143,0.1767839,115100.0,115090.0,1.00979089]
[1754389943239,0.1757839,115100.0,115090.0,1.00979089]
[1754389943441,0.1737839,115100.0,115090.0,1.00979089]
[1754389943639,0.1757839,115100.0,115090.0,1.00979089]
[1754389944036,0.1737839,115100.0,115090.0,1.00979089]
[1754389944738,0.3131298,115110.0,115100.0,0.2214857]
[1754389945043,0.3288398,115110.0,115100.0,0.2919557]
[1754389945245,0.3288398,115110.0,115100.0,0.40857569]
[1754389946041,0.2853964,115110.0,115100.0,0.40857569]
[1754389946347,0.1747732,115110.0,115100.0,0.40857569]
[1754389946744,0.001,115110.0,115100.0,0.40857569]
[1754389947841,0.1737606,115110.0,115100.0,0.40857569]
[1754389948647,0.1985006,115110.0,115100.0,0.40857569]
[1754389949346,0.70677912,115110.0,115100.0,1.00969569]
[1754389950148,0.2017006,115110.0,115100.0,1.00969569]
[1754389950341,0.70677912,115110.0,115100.0,1.00969569]
[1754389950949,0.2017006,115110.0,115100.0,1.00969569]
[1754389951345,0.1737606,115110.0,115100.0,1.00969569]
[1754389951544,0.1737606,115110.0,115100.0,1.27449569]
[1754389952144,0.1827906,115110.0,115100.0,1.27449569]
[1754389952350,0.1988006,115110.0,115100.0,1.27449569]
[1754389952951,0.70387912,115110.0,115100.0,1.27449569]
[1754389953449,0.1737606,115110.0,115100.0,1.27449569]
[1754389956248,0.1737606,115110.0,115100.0,0.67337569]
[1754389956453,0.1737606,115110.0,115100.0,1.27413569]
[1754389957150,0.1737487,115120.0,115110.0,0.2930305]
[1754389957348,0.1737487,115120.0,115110.0,0.5578305]
[1754389958048,0.79486032,115130.0,115120.0,0.2930155]
[1754389958357,0.2865818,115130.0,115120.0,0.8935755]
[1754389958759,0.2865818,115130.0,115120.0,0.8998979]
[1754389960155,0.2865818,115130.0,115120.0,1.01651789]
[1754389960760,0.79166032,115130.0,115120.0,1.01651789]
[1754389961260,0.2865818,115130.0,115120.0,1.01651789]
[1754389961465,0.79486032,115130.0,115120.0,1.01055549]